bitfinex/quotes_BTCUSD_20250221
["timestamp","ask_amount","ask_price","bid_price","bid_amount"]
[1740148890970,1e-07,98551.0,98550.0,0.83864313]
[1740148893512,1e-07,98551.0,98550.0,0.83164313]
[1740148893711,0.0008509,98572.0,98571.0,0.152174]
[1740148893955,0.00098169,98572.0,98571.0,0.25481969]
[1740148894447,0.00098169,98572.0,98571.0,0.38141969]
[1740148894649,6.9e-07,98572.0,98571.0,0.7161246]
[1740148895163,0.00100069,98572.0,98571.0,0.7221246]
[1740148895368,6.9e-07,98572.0,98571.0,0.79590922]
[1740148895796,6.9e-07,98572.0,98571.0,0.78890922]
[1740148895943,6.9e-07,98572.0,98571.0,0.79590922]
[1740148896553,0.0008506,98600.0,98599.0,0.152131]
[1740148896753,0.0012864,98600.0,98599.0,0.25477669]
[1740148896982,0.0012864,98600.0,98599.0,0.30053876]
[1740148897821,0.0012864,98600.0,98599.0,0.43133876]
[1740148898380,0.0012864,98600.0,98599.0,0.43633876]
[1740148899245,4e-07,98600.0,98599.0,0.76133876]
[1740148899463,4e-07,98600.0,98599.0,0.7867596]
[1740148899595,4e-07,98600.0,98599.0,0.7817596]
[1740148899794,4e-07,98600.0,98599.0,0.7887596]
[1740148899999,4e-07,98600.0,98599.0,0.80338357]
[1740148900223,4e-07,98600.0,98599.0,0.78938357]
[1740148900439,4e-07,98600.0,98599.0,0.79638357]
[1740148900652,0.0008507,98650.0,98625.0,0.281591]
[1740148900855,0.00098111,98626.0,98625.0,0.73739579]
[1740148901329,1.1e-07,98626.0,98625.0,0.76294563]
[1740148901533,1.1e-07,98626.0,98625.0,0.79666797]
[1740148902069,1.1e-07,98626.0,98625.0,0.7474032]
[1740148902683,1.1e-07,98626.0,98625.0,0.77599243]
[1740148902921,1.1e-07,98626.0,98625.0,0.81607145]
[1740148903180,1.1e-07,98626.0,98625.0,0.80907145]
[1740148903400,1.1e-07,98626.0,98625.0,0.80207145]
[1740148903625,1.1e-07,98626.0,98625.0,0.81607145]
[1740148903853,1.1e-07,98626.0,98625.0,0.7544032]
[1740148904086,1.1e-07,98626.0,98625.0,0.95299243]
[1740148904303,1.1e-07,98626.0,98625.0,0.96748688]
[1740148904527,1.1e-07,98626.0,98625.0,0.96980688]
[1740148904755,1.1e-07,98626.0,98625.0,1.04660688]
[1740148905202,1.1e-07,98626.0,98625.0,1.02501765]
[1740148905453,1.1e-07,98626.0,98625.0,1.05360688]
[1740148905682,1.1e-07,98626.0,98625.0,1.01801765]
[1740148905898,1.1e-07,98626.0,98625.0,1.02501765]
[1740148906320,1.1e-07,98626.0,98625.0,1.01801765]
[1740148906756,1.1e-07,98626.0,98625.0,1.02501765]
[1740148906972,2.1e-07,98626.0,98625.0,1.01801765]
[1740148907325,0.0008507,98650.0,98649.0,0.199454]
[1740148907326,7e-07,98650.0,98649.0,0.199454]
[1740148907526,7e-07,98650.0,98649.0,0.32204509]
[1740148908161,7e-07,98650.0,98649.0,0.64704509]
[1740148908699,7e-07,98650.0,98649.0,0.65404509]
[1740148908963,7e-07,98650.0,98649.0,0.64704509]
[1740148909445,7e-07,98650.0,98649.0,0.65404509]
[1740148909671,7e-07,98650.0,98649.0,0.66104509]
[1740148909804,7e-07,98650.0,98649.0,0.64704509]
[1740148910655,7e-07,98650.0,98649.0,0.66104509]
[1740148910901,7e-07,98650.0,98649.0,0.72904509]
[1740148911350,7e-07,98650.0,98649.0,0.73604509]
[1740148911830,7e-07,98650.0,98649.0,0.72904509]
[1740148912280,7e-07,98650.0,98649.0,0.78074509]
[1740148912518,0.00085,98669.0,98652.0,0.02]
[1740148912519,9e-07,98669.0,98652.0,0.02]
[1740148912730,0.0008507,98696.0,98670.0,0.152021]
[1740148912731,4e-07,98671.0,98670.0,0.152021]
[1740148912941,4e-07,98671.0,98670.0,0.25466669]
[1740148913203,0.00013106,98671.0,98670.0,0.25466669]
[1740148913419,0.00013106,98671.0,98670.0,0.152021]
[1740148913637,0.00013106,98671.0,98670.0,0.33067969]
[1740148914049,0.00013106,98671.0,98670.0,0.33767969]
[1740148914254,0.00013106,98671.0,98670.0,0.33067969]
[1740148915208,0.00013106,98671.0,98670.0,0.33767969]
[1740148915691,0.00013106,98671.0,98670.0,0.33667969]
[1740148915925,0.00013106,98671.0,98670.0,0.33067969]
[1740148916144,0.00013106,98671.0,98670.0,0.33767969]
[1740148916366,0.00013106,98671.0,98670.0,0.242034]
[1740148916576,0.00013106,98671.0,98670.0,0.235034]
[1740148916993,0.00013106,98671.0,98670.0,0.33767969]
[1740148917422,0.00013106,98671.0,98670.0,0.34267969]
[1740148918457,0.00013106,98671.0,98670.0,0.33567969]
[1740148918675,0.00013106,98671.0,98670.0,0.33767969]
[1740148919061,0.00013106,98671.0,98670.0,0.33667969]
[1740148919462,0.00013106,98671.0,98670.0,0.34367969]
[1740148920037,0.00013106,98671.0,98670.0,0.3607524]
[1740148921844,0.00013106,98671.0,98670.0,0.36789475]
[1740148922128,0.00013106,98671.0,98670.0,0.36089475]
[1740148922335,0.00013106,98671.0,98670.0,0.37489475]
[1740148922506,0.00013106,98671.0,98670.0,0.36789475]
[1740148923127,0.00013106,98671.0,98670.0,0.25517635]
[1740148923341,0.00013106,98671.0,98670.0,0.49990525]
[1740148923531,0.00013106,98671.0,98670.0,0.25517635]
[1740148923915,0.00013106,98671.0,98670.0,0.36482204]
[1740148924535,0.00013106,98671.0,98670.0,0.35782204]
[1740148924742,0.00013106,98671.0,98670.0,0.36482204]
[1740148925118,0.00013106,98671.0,98670.0,0.69255542]
[1740148925903,0.00013106,98671.0,98670.0,0.68282204]
[1740148927022,0.00013106,98671.0,98670.0,0.17916335]
[1740148927442,0.00013106,98671.0,98670.0,0.18616335]
[1740148927648,0.00013106,98671.0,98670.0,0.18037944]
[1740148927856,0.00013106,98671.0,98670.0,0.17916335]
[1740148928059,0.00013106,98671.0,98670.0,0.18037939]
[1740148928308,0.00013106,98671.0,98670.0,0.25801229]
[1740148928502,0.00013106,98671.0,98670.0,0.26501229]
[1740148928734,0.00013106,98671.0,98670.0,0.25801229]
[1740148928940,0.00013106,98671.0,98670.0,0.10599129]
[1740148929049,0.00013106,98671.0,98670.0,0.02014235]
[1740148929251,0.00013106,98671.0,98670.0,0.007]
[1740148929495,0.00013106,98671.0,98670.0,0.014]
[1740148929910,0.00013106,98671.0,98670.0,0.159021]
[1740148930113,0.00013106,98671.0,98670.0,0.164021]
[1740148930329,0.00013106,98671.0,98670.0,0.2209635]
[1740148930531,0.00013106,98671.0,98670.0,0.2226643]
[1740148930899,0.00013106,98671.0,98670.0,0.0636433]
[1740148931100,0.00013106,98671.0,98670.0,0.0137008]
[1740148931867,0.00013106,98671.0,98670.0,0.0017008]
[1740148932122,0.00013106,98671.0,98670.0,0.0037008]
[1740148932324,0.00013106,98671.0,98670.0,0.0047008]
[1740148932591,0.00013106,98671.0,98670.0,0.0027008]
[1740148932960,0.00013106,98671.0,98670.0,0.03844358]
[1740148933170,0.00013106,98671.0,98670.0,0.0027008]
[1740148933323,0.30215106,98671.0,98670.0,0.0027008]
[1740148933528,0.48709675,98671.0,98670.0,0.0027008]
[1740148933720,0.33507675,98671.0,98670.0,0.0027008]
[1740148933918,0.48709675,98671.0,98670.0,0.0027008]
[1740148934120,0.48709675,98671.0,98670.0,0.0057008]
[1740148934322,0.33507675,98671.0,98670.0,0.0057008]
[1740148934649,0.33507675,98671.0,98670.0,0.0027008]
[1740148934867,0.36611049,98671.0,98670.0,0.0027008]
[1740148935106,0.36611049,98671.0,98670.0,0.0017008]
[1740148935299,0.36711049,98671.0,98670.0,0.0017008]
[1740148935633,0.0321648,98671.0,98670.0,0.1537218]
[1740148935871,0.00113106,98671.0,98670.0,0.01707298]
[1740148936330,0.00113106,98671.0,98670.0,0.16909398]
[1740148936505,0.00013106,98671.0,98670.0,0.01707298]
[1740148936712,0.00013106,98671.0,98670.0,0.0017008]
[1740148936915,0.00013106,98671.0,98670.0,0.0027008]
[1740148938143,0.15215106,98671.0,98670.0,0.0027008]
[1740148938393,0.00013106,98671.0,98670.0,0.0027008]
[1740148938603,0.00013106,98671.0,98670.0,0.1547218]
[1740148938795,0.00013106,98671.0,98670.0,0.19346378]
[1740148941276,0.00013106,98671.0,98670.0,0.19467979]
[1740148941481,0.00013106,98671.0,98670.0,0.42390947]
[1740148942060,0.00013106,98671.0,98670.0,0.34100947]
[1740148942346,0.00013106,98671.0,98670.0,0.33800947]
[1740148942559,0.00013106,98671.0,98670.0,0.34100947]
[1740148942781,0.00013106,98671.0,98670.0,0.34000947]
[1740148942992,0.00013106,98671.0,98670.0,0.34500947]
[1740148943201,0.00013106,98671.0,98670.0,0.34000947]
[1740148943850,0.00013106,98671.0,98670.0,0.33700947]
[1740148944261,0.00013106,98671.0,98670.0,0.34400947]
[1740148945028,0.00013106,98671.0,98670.0,0.34200947]
[1740148945197,0.00013106,98671.0,98670.0,0.33700947]
[1740148945402,0.00013106,98671.0,98670.0,0.34400947]
[1740148945599,0.00013106,98671.0,98670.0,0.35100947]
[1740148945800,0.00013106,98671.0,98670.0,0.34400947]
[1740148946240,0.00013106,98671.0,98670.0,0.35100947]
[1740148946517,6e-08,98671.0,98670.0,0.55866947]
[1740148946751,6e-08,98671.0,98670.0,0.60941032]
[1740148946924,6e-08,98671.0,98670.0,1.00421032]
[1740148947173,6e-08,98671.0,98670.0,1.01121032]
[1740148947374,6e-08,98671.0,98670.0,0.99121032]
[1740148947544,6e-08,98671.0,98670.0,0.96966947]
[1740148947752,6e-08,98671.0,98670.0,0.89650947]
[1740148947968,6e-08,98671.0,98670.0,0.67940947]
[1740148948198,6e-08,98671.0,98670.0,0.67240947]
[1740148949112,6e-08,98671.0,98670.0,0.63110947]
[1740148950067,6e-08,98671.0,98670.0,0.62410947]
[1740148950308,6e-08,98671.0,98670.0,0.63110947]
[1740148950504,0.00016006,98689.0,98682.0,0.152003]
[1740148950772,0.00016006,98689.0,98683.0,0.035468]
[1740148951069,0.00016006,98689.0,98670.0,0.36244278]
[1740148951278,0.00016006,98689.0,98687.0,0.151994]
[1740148952062,0.00016006,98689.0,98686.0,0.151996]
[1740148952297,0.00016006,98689.0,98687.0,0.151995]
[1740148952676,0.00016006,98689.0,98682.0,0.006]
[1740148952942,0.15215306,98689.0,98682.0,0.006]
[1740148953140,0.00016006,98689.0,98682.0,0.006]
[1740148953348,0.151996,98687.0,98683.0,0.015801]
[1740148953579,0.152,98684.0,98682.0,0.006]
[1740148953785,0.0804,98682.0,98670.0,0.0017008]
[1740148953913,0.0008504,98671.0,98670.0,0.0017008]
[1740148954114,0.1528704,98671.0,98670.0,0.0017008]
[1740148954546,0.3028704,98671.0,98670.0,0.0017008]
[1740148954755,0.33392824,98671.0,98670.0,0.0017008]
[1740148955105,0.18190824,98671.0,98670.0,0.0067008]
[1740148955311,0.18190824,98671.0,98670.0,0.0017008]
[1740148955512,0.18190824,98671.0,98670.0,0.0047008]
[1740148955988,0.1508504,98671.0,98670.0,0.1567218]
[1740148956142,0.0008504,98671.0,98670.0,0.04064298]
[1740148956341,0.0008504,98671.0,98670.0,0.19266398]
[1740148956520,0.0008504,98671.0,98670.0,0.19666398]
[1740148956966,0.0008504,98671.0,98670.0,0.19266398]
[1740148957354,0.0008504,98671.0,98670.0,0.18966398]
[1740148957567,0.0008504,98671.0,98670.0,0.19466398]
[1740148957804,0.0008504,98671.0,98670.0,0.19766398]
[1740148958060,0.0008504,98671.0,98670.0,0.04064298]
[1740148958287,0.0008504,98671.0,98670.0,0.19266398]
[1740148958512,0.0008504,98671.0,98670.0,0.1567218]
[1740148958734,0.0008504,98671.0,98670.0,0.1537218]
[1740148958976,0.0008504,98671.0,98670.0,0.1607218]
[1740148959184,0.0008504,98671.0,98670.0,0.1577218]
[1740148959619,0.0008504,98671.0,98670.0,0.1607218]
[1740148959771,0.0008504,98671.0,98670.0,0.21937457]
[1740148960364,0.0008504,98671.0,98670.0,0.32202026]
[1740148961209,0.0008504,98671.0,98670.0,0.31802026]
[1740148961429,0.0008504,98671.0,98670.0,0.32202026]
[1740148961640,0.0008504,98671.0,98670.0,0.32902026]
[1740148962192,0.0008504,98671.0,98670.0,0.65402026]
[1740148963098,0.0008504,98671.0,98670.0,0.73222026]
[1740148963230,0.0008504,98671.0,98670.0,0.72522026]
[1740148963441,0.0008504,98671.0,98670.0,0.73222026]
[1740148963850,0.0008504,98671.0,98670.0,0.72822026]
[1740148964048,0.0008504,98671.0,98670.0,0.78232026]
[1740148964246,0.08912889,98690.0,98688.0,0.231194]
[1740148964471,0.08912889,98690.0,98688.0,0.4620168]
[1740148965291,0.0008507,98696.0,98695.0,0.151983]
[1740148965497,0.0008507,98696.0,98695.0,0.34135917]
[1740148966050,0.0008507,98696.0,98695.0,0.08673048]
[1740148966202,0.0008507,98696.0,98695.0,0.08794625]
[1740148966616,0.0008507,98696.0,98695.0,0.18937617]
[1740148967315,0.0008507,98696.0,98695.0,0.19059177]
[1740148967511,0.0008507,98696.0,98695.0,0.19759177]
[1740148968487,0.0008507,98696.0,98695.0,0.20337617]
[1740148969227,0.0008507,98696.0,98695.0,0.20459176]
[1740148969710,0.0008507,98696.0,98695.0,0.10073048]
[1740148969981,0.0008507,98696.0,98695.0,0.10194615]
[1740148970214,0.0008507,98696.0,98695.0,0.09494615]
[1740148970698,0.0008507,98696.0,98695.0,0.19637617]
[1740148970939,0.0008507,98696.0,98695.0,0.08673048]
[1740148971173,0.0008507,98696.0,98695.0,0.10073048]
[1740148971419,0.0008507,98696.0,98695.0,0.09373048]
[1740148971754,0.0008507,98696.0,98695.0,0.014]
[1740148971953,0.0008507,98696.0,98695.0,0.007]
[1740148972359,0.0008507,98696.0,98695.0,0.158983]
[1740148972792,0.0008507,98696.0,98695.0,0.151983]
[1740148972988,0.0008507,98696.0,98695.0,0.158983]
[1740148973356,0.0008507,98696.0,98695.0,0.32505689]
[1740148973747,0.0008507,98696.0,98695.0,0.31805689]
[1740148973926,0.0008507,98696.0,98695.0,0.32405689]
[1740148974139,0.0008507,98696.0,98695.0,0.31705689]
[1740148974472,0.0008507,98696.0,98695.0,0.32405689]
[1740148974680,0.0008507,98696.0,98695.0,0.2214112]
[1740148974854,0.0008507,98696.0,98695.0,0.013]
[1740148976078,0.0008507,98696.0,98695.0,0.006]
[1740148976289,0.0008507,98696.0,98695.0,0.013]
[1740148976491,0.0008507,98696.0,98695.0,0.007]
[1740148976698,0.0008507,98696.0,98695.0,0.172948]
[1740148977172,0.0008507,98696.0,98695.0,0.176948]
[1740148977376,0.0008507,98696.0,98695.0,0.179948]
[1740148977586,0.0008507,98696.0,98695.0,0.175948]
[1740148977915,0.0008507,98696.0,98695.0,0.179948]
[1740148978318,0.0008507,98696.0,98695.0,0.184948]
[1740148978738,0.0008507,98696.0,98695.0,0.012]
[1740148979321,0.0008507,98696.0,98695.0,0.156983]
[1740148979520,0.0008507,98696.0,98695.0,0.005]
[1740148979795,0.0008507,98696.0,98695.0,0.156983]
[1740148980220,0.0008507,98696.0,98695.0,0.154983]
[1740148980424,0.0008507,98696.0,98695.0,0.20818154]
[1740148980630,0.0008507,98696.0,98695.0,0.21618154]
[1740148980850,0.0008507,98696.0,98695.0,0.06419854]
[1740148981017,0.0008507,98696.0,98695.0,0.159983]
[1740148981751,0.0008507,98696.0,98695.0,0.008]
[1740148981957,0.0008507,98696.0,98695.0,0.159983]
[1740148982386,0.0008507,98696.0,98695.0,0.008]
[1740148982622,0.0008507,98696.0,98695.0,0.159983]
[1740148982857,0.0008507,98696.0,98695.0,0.21668134]
[1740148983062,0.0008507,98696.0,98695.0,0.06469834]
[1740148983195,0.0008507,98696.0,98695.0,0.008]
[1740148983397,0.0008507,98696.0,98695.0,0.159983]
[1740148983602,0.0008507,98696.0,98695.0,0.008]
[1740148988460,0.0008507,98696.0,98695.0,0.159983]
[1740148990720,0.0008507,98696.0,98695.0,0.154983]
[1740148990933,0.0008507,98696.0,98695.0,0.007]
[1740148991168,0.42001824,98696.0,98695.0,0.007]
[1740148991451,0.42001824,98696.0,98695.0,0.012]
[1740148991452,0.46075973,98696.0,98695.0,0.012]
[1740148991681,0.45105122,98696.0,98695.0,0.005]
[1740148991928,0.45105122,98696.0,98670.0,0.0117008]
[1740148991929,0.15,98671.0,98670.0,0.0117008]
[1740148992173,0.40466569,98671.0,98670.0,0.0117008]
[1740148992603,0.43513269,98671.0,98670.0,0.0117008]
[1740148993421,0.180467,98671.0,98670.0,0.0127008]
[1740148993666,0.180467,98671.0,98670.0,0.03724098]
[1740148993667,0.030467,98671.0,98670.0,0.03724098]
[1740148993881,0.030467,98671.0,98670.0,0.0157008]
[1740148994290,0.182487,98671.0,98670.0,0.0157008]
[1740148994518,0.182487,98671.0,98670.0,0.0127008]
[1740148994721,0.43513269,98671.0,98670.0,0.0127008]
[1740148994838,0.43513269,98671.0,98670.0,0.0177008]
[1740148995469,0.43513269,98671.0,98670.0,0.0167008]
[1740148995711,0.43513269,98671.0,98670.0,0.0187008]
[1740148995909,0.43513269,98671.0,98670.0,0.0137008]
[1740148996226,0.43513269,98671.0,98670.0,0.0117008]
[1740148996431,0.43713269,98671.0,98670.0,0.0157008]
[1740148996872,0.43713269,98671.0,98670.0,0.0117008]
[1740148996873,0.334487,98671.0,98670.0,0.0117008]
[1740148997408,0.182467,98671.0,98670.0,0.0117008]
[1740148998383,0.182467,98671.0,98670.0,0.02807348]
[1740148998719,0.032467,98671.0,98670.0,0.02807348]
[1740148998940,0.15792083,98680.0,98670.0,0.02807348]
[1740148999156,0.030461,98684.0,98683.0,0.152001]
[1740148999366,0.10023474,98696.0,98683.0,0.152001]
[1740148999566,0.10023474,98696.0,98686.0,0.151996]
[1740148999859,0.030457,98695.0,98671.0,0.08107711]
[1740149000036,0.030457,98695.0,98672.0,0.10264569]
[1740149000244,0.01099151,98696.0,98695.0,0.151983]
[1740149000658,0.01099151,98696.0,98674.0,0.202687]
[1740149001017,0.01099151,98696.0,98687.0,0.20266]
[1740149001182,0.01099151,98696.0,98693.0,0.151985]
[1740149001594,0.01099151,98696.0,98691.0,0.151989]
[1740149001761,0.01099151,98696.0,98691.0,0.0356655]
[1740149001970,0.01099151,98696.0,98686.0,0.002]
[1740149001971,0.151995,98687.0,98686.0,0.002]
[1740149002168,0.15,98686.0,98649.0,0.0017012]
[1740149002424,0.01454085,98694.0,98649.0,0.0017012]
[1740149002425,0.15202,98671.0,98658.0,0.02014443]
[1740149002625,0.15792083,98680.0,98660.0,0.202715]
[1740149002827,0.15,98689.0,98661.0,0.00121619]
[1740149003028,0.152,98684.0,98674.0,0.152015]
[1740149003236,0.15,98683.0,98675.0,0.01637158]
[1740149003746,0.15,98683.0,98679.0,0.152008]
[1740149003747,0.003,98680.0,98679.0,0.152008]
[1740149005223,0.003,98680.0,98677.0,0.152009]
[1740149005614,0.202661,98687.0,98675.0,0.003]
[1740149005874,0.151994,98688.0,98680.0,0.152005]
[1740149006080,0.15202,98671.0,98652.0,0.08107711]
[1740149006293,0.15202,98671.0,98659.0,0.0206926]
[1740149006500,0.30202,98671.0,98652.0,0.08107711]
[1740149006694,0.30202,98671.0,98642.0,0.28382811]
[1740149006695,0.30202,98671.0,98649.0,0.0017012]
[1740149007631,0.30202,98671.0,98652.0,0.152049]
[1740149007847,0.30202,98671.0,98654.0,0.152046]
[1740149008018,0.30202,98671.0,98652.0,0.202731]
[1740149008519,0.30202,98671.0,98649.0,0.2044392]
[1740149008673,0.30302,98671.0,98670.0,0.0147008]
[1740149008876,0.001,98671.0,98670.0,0.0117008]
[1740149009099,0.001,98671.0,98670.0,0.01781088]
[1740149009279,0.004,98671.0,98670.0,0.16983188]
[1740149009491,0.004,98671.0,98670.0,0.0117008]
[1740149009492,0.15302,98671.0,98670.0,0.0117008]
[1740149009686,0.01454085,98677.0,98670.0,0.0117008]
[1740149009901,0.45067254,98671.0,98670.0,0.0127008]
[1740149010105,0.44967254,98671.0,98670.0,0.0127008]
[1740149010318,0.4806635,98671.0,98670.0,0.0147008]
[1740149011169,0.332486,98671.0,98670.0,0.0147008]
[1740149011378,0.332446,98671.0,98670.0,0.0147008]
[1740149011602,0.332446,98671.0,98670.0,0.0117008]
[1740149012704,0.335446,98671.0,98670.0,0.0127008]
[1740149012919,0.45263254,98671.0,98670.0,0.0127008]
[1740149013044,0.45463254,98671.0,98670.0,0.0117008]
[1740149013248,0.48061155,98671.0,98670.0,0.0127008]
[1740149013652,0.48161155,98671.0,98670.0,0.0127008]
[1740149013907,0.80871155,98671.0,98670.0,0.0127008]
[1740149014167,0.80871155,98671.0,98649.0,0.0017012]
[1740149014168,0.152052,98650.0,98649.0,0.0017012]
[1740149014339,0.15,98651.0,98649.0,0.0017012]
[1740149014485,0.152043,98656.0,98649.0,0.0017012]
[1740149014689,0.01454085,98668.0,98649.0,0.0017012]
[1740149014950,0.15,98654.0,98649.0,0.1537552]
[1740149015154,0.15,98654.0,98650.0,0.18770102]
[1740149015359,0.15,98654.0,98649.0,0.0017012]
[1740149015568,0.15,98652.0,98649.0,0.0047012]
[1740149015719,8.376e-05,98654.0,98649.0,0.0047012]
[1740149015923,8.376e-05,98654.0,98653.0,0.152048]
[1740149017538,8.376e-05,98654.0,98650.0,0.004]
[1740149017648,0.152052,98650.0,98649.0,0.0017012]
[1740149017868,8.376e-05,98654.0,98653.0,0.007]
[1740149018471,8.376e-05,98654.0,98653.0,0.02114412]
[1740149019034,8.376e-05,98654.0,98649.0,0.0017012]
[1740149019035,8.376e-05,98654.0,98649.0,0.0057012]
[1740149019252,8.376e-05,98654.0,98653.0,0.153048]
[1740149019419,8.376e-05,98654.0,98653.0,0.233348]
[1740149019622,8.376e-05,98654.0,98653.0,0.34299369]
[1740149019824,8.376e-05,98654.0,98653.0,0.34699369]
[1740149020025,8.376e-05,98654.0,98653.0,0.41841058]
[1740149020443,8.376e-05,98654.0,98653.0,0.08241689]
[1740149020597,8.376e-05,98654.0,98653.0,0.159048]
[1740149020832,8.376e-05,98654.0,98649.0,0.0017012]
[1740149021038,8.376e-05,98654.0,98653.0,0.005]
[1740149021688,8.376e-05,98654.0,98653.0,0.152048]
[1740149021890,8.376e-05,98654.0,98653.0,0.199448]
[1740149022235,8.376e-05,98654.0,98653.0,0.36275631]
[1740149022654,7.6e-07,98654.0,98653.0,0.44925631]
[1740149022857,0.0008502,98695.0,98687.0,0.199995]
[1740149023075,0.08934912,98688.0,98687.0,0.199995]
[1740149024120,0.08934912,98688.0,98687.0,0.19526875]
[1740149024339,0.08934912,98688.0,98687.0,0.29265374]
[1740149024538,0.00010589,98688.0,98687.0,0.39429943]
[1740149024965,0.0008507,98696.0,98694.0,0.151984]
[1740149024966,7.8e-07,98696.0,98694.0,0.151984]
[1740149025187,7.8e-07,98696.0,98695.0,0.23446105]
[1740149025407,7.8e-07,98696.0,98695.0,0.23324569]
[1740149025627,7.8e-07,98696.0,98695.0,0.33256436]
[1740149026286,0.0008507,98731.0,98695.0,0.33256436]
[1740149026287,0.0008507,98731.0,98724.0,0.151938]
[1740149026493,0.0008507,98731.0,98724.0,0.30028369]
[1740149026695,0.00128585,98725.0,98724.0,0.30028369]
[1740149028064,0.00128585,98725.0,98724.0,0.30028369]
[1740149028278,0.00128585,98725.0,98709.0,0.0457]
[1740149028505,0.00128585,98725.0,98723.0,0.15194]
[1740149028694,0.00128585,98725.0,98724.0,0.02330171]
[1740149028901,0.00128585,98725.0,98724.0,0.02730171]
[1740149029108,0.00128585,98725.0,98697.0,0.0473]
[1740149029369,0.00128585,98725.0,98706.0,0.08107711]
[1740149029587,0.00128585,98725.0,98721.0,0.151942]
[1740149029795,0.00128585,98725.0,98708.0,0.202617]
[1740149030093,0.00128585,98725.0,98724.0,0.003]
[1740149030324,0.00128585,98725.0,98724.0,0.0357527]
[1740149030678,0.00128585,98725.0,98724.0,0.03696804]
[1740149030877,0.00128585,98725.0,98724.0,0.0357527]
[1740149031270,0.00128585,98725.0,98724.0,0.14539839]
[1740149031460,0.00128585,98725.0,98724.0,0.27201373]
[1740149031659,0.00128585,98725.0,98724.0,0.26379839]
[1740149032112,0.00228585,98725.0,98724.0,0.27079839]
[1740149032956,0.00228585,98725.0,98724.0,0.27379839]
[1740149033099,0.00228585,98725.0,98724.0,0.27079839]
[1740149033330,0.00228585,98725.0,98724.0,0.27779839]
[1740149033528,5.5e-07,98731.0,98730.0,0.151929]
[1740149033729,0.00010637,98731.0,98730.0,0.35722038]
[1740149034574,0.00010637,98731.0,98730.0,0.25457469]
[1740149034728,0.00010637,98731.0,98730.0,0.26157469]
[1740149035108,0.00010637,98731.0,98730.0,0.25457469]
[1740149036437,0.00010637,98731.0,98730.0,0.68922038]
[1740149036543,0.00010637,98731.0,98730.0,0.69622038]
[1740149036747,0.00010637,98731.0,98730.0,0.26857469]
[1740149036952,0.00010637,98731.0,98730.0,0.26157469]
[1740149037195,0.00010637,98731.0,98730.0,0.007]
[1740149037451,0.00010637,98731.0,98730.0,0.165929]
[1740149038107,0.00010637,98731.0,98730.0,0.158929]
[1740149038310,0.00010637,98731.0,98730.0,0.165929]
[1740149038757,0.00010637,98731.0,98730.0,0.158929]
[1740149038964,0.00010637,98731.0,98730.0,0.0501504]
[1740149039206,0.00010637,98731.0,98730.0,0.014]
[1740149039421,0.15010637,98731.0,98730.0,0.007]
[1740149039666,0.30203337,98731.0,98730.0,0.005]
[1740149039893,0.15,98730.0,98696.0,0.08107711]
[1740149040124,0.15,98730.0,98729.0,0.151931]
[1740149040354,0.15,98730.0,98726.0,0.202579]
[1740149040568,0.15,98730.0,98727.0,0.151933]
[1740149040825,0.15,98730.0,98729.0,0.151931]
[1740149041065,0.00010637,98731.0,98729.0,0.0151931]
[1740149041280,0.00010637,98731.0,98730.0,0.151929]
[1740149041476,0.00010637,98731.0,98730.0,0.150929]
[1740149041650,0.00010637,98731.0,98730.0,0.25479001]
[1740149041869,0.00010637,98731.0,98730.0,0.25357469]
[1740149042108,0.00010637,98731.0,98730.0,0.33780468]
[1740149043481,0.00010637,98731.0,98730.0,0.34380468]
[1740149044525,0.00010637,98731.0,98730.0,0.013]
[1740149045627,0.40467906,98731.0,98730.0,0.013]
[1740149045828,0.41921991,98731.0,98730.0,0.007]
[1740149046074,0.44966891,98731.0,98730.0,0.009]
[1740149046365,0.44966891,98731.0,98730.0,0.002]
[1740149046598,0.44966891,98731.0,98730.0,0.007]
[1740149046796,0.44966891,98731.0,98730.0,0.005]
[1740149047005,0.44966891,98731.0,98696.0,0.08107711]
[1740149047006,0.151946,98719.0,98712.0,0.151956]
[1740149047215,0.01454085,98729.0,98712.0,0.0151956]
[1740149047439,0.151948,98718.0,98712.0,0.0151956]
[1740149047652,0.01454085,98727.0,98712.0,0.0151956]
[1740149047867,0.00110637,98731.0,98712.0,0.0151956]
[1740149048068,0.15,98726.0,98714.0,0.202605]
[1740149048275,0.301935,98726.0,98712.0,0.003]
[1740149048482,0.15,98726.0,98718.0,0.151947]
[1740149048663,0.15,98726.0,98719.0,0.151945]
[1740149049011,0.15,98726.0,98716.0,0.202599]
[1740149049012,0.15,98726.0,98725.0,0.151937]
[1740149049507,0.15,98726.0,98708.0,0.01991687]
[1740149049686,0.15,98726.0,98723.0,0.151939]
[1740149049921,0.15,98729.0,98724.0,0.151938]
[1740149050120,0.15,98729.0,98725.0,0.0152938]
[1740149050255,0.151935,98726.0,98725.0,0.001]
[1740149050467,0.151935,98726.0,98725.0,0.005]
[1740149050876,0.41912154,98726.0,98725.0,0.005]
[1740149051109,0.41912154,98726.0,98725.0,0.001]
[1740149051316,0.41912154,98726.0,98725.0,0.003]
[1740149051522,0.41912154,98726.0,98725.0,0.002]
[1740149052368,0.49882154,98726.0,98725.0,0.002]
[1740149052572,0.16454085,98725.0,98695.0,0.0017002]
[1740149052771,0.151977,98699.0,98695.0,0.0017002]
[1740149052981,0.151979,98698.0,98695.0,0.0017002]
[1740149053199,0.15,98703.0,98696.0,0.01536892]
[1740149053402,0.15,98703.0,98695.0,0.0017002]
[1740149053679,0.15,98703.0,98698.0,0.151978]
[1740149054065,0.15,98703.0,98698.0,0.15241325]
[1740149054342,0.00985711,98703.0,98698.0,0.00043525]
[1740149054544,0.00985711,98703.0,98699.0,0.00842126]
[1740149054842,0.15,98718.0,98699.0,0.16039726]
[1740149055051,0.15,98704.0,98699.0,0.16039726]
[1740149055252,0.15,98704.0,98699.0,0.00842126]
[1740149055381,0.15996167,98704.0,98699.0,0.00842126]
[1740149055587,0.15996167,98704.0,98701.0,0.151973]
[1740149056196,0.00996167,98704.0,98700.0,0.04462528]
[1740149056463,0.151963,98709.0,98700.0,0.04462528]
[1740149056667,0.151954,98714.0,98701.0,0.202632]
[1740149056877,0.15,98713.0,98707.0,0.151964]
[1740149057072,0.00983918,98714.0,98713.0,0.151955]
[1740149057333,0.0771,98751.0,98712.0,0.0481]
[1740149057538,0.151925,98733.0,98716.0,0.08107711]
[1740149057687,0.009776,98731.0,98716.0,0.08107711]
[1740149057867,0.009776,98731.0,98717.0,0.02318228]
[1740149058278,0.009776,98731.0,98730.0,0.151929]
[1740149058494,0.009776,98731.0,98726.0,0.08107711]
[1740149058940,0.011776,98731.0,98726.0,0.08107711]